bitfinex/quotes_ETHUSD_20250331
["timestamp","ask_amount","ask_price","bid_price","bid_amount"]
[1743464323610,10.9453,1827.3,1827.1,5.279]
[1743464324184,10.94534,1827.3,1827.1,5.279]
[1743464325212,5.47285,1827.2,1827.1,5.279]
[1743464331611,6.3749087,1827.3,1827.1,5.279]
[1743464332917,5.47285,1827.2,1827.1,5.279]
[1743464333217,5.47256,1827.3,1827.1,5.279]
[1743464333420,10.94535,1827.3,1827.1,5.279]
[1743464333918,5.47285,1827.2,1827.1,5.279]
[1743464334289,6.27445,1827.2,1827.1,5.279]
[1743464335325,5.47285,1827.2,1827.1,5.279]
[1743464339551,7.361295,1827.3,1827.1,5.279]
[1743464339552,6.567095,1827.3,1827.1,5.279]
[1743464339710,5.47256,1827.3,1827.1,5.279]
[1743464340040,6.24478,1827.5,1827.1,5.279]
[1743464340224,5.47236,1827.4,1827.2,0.806]
[1743464340434,5.47255,1827.3,1827.1,5.279]
[1743464340600,5.47285,1827.2,1827.1,5.279]
[1743464341043,5.47255,1827.3,1827.1,5.279]
[1743464341345,10.94528,1827.3,1827.1,5.279]
[1743464341942,5.47285,1827.2,1827.1,5.279]
[1743464344417,6.23331,1827.4,1827.1,10.75215]
[1743464344621,6.23331,1827.4,1827.2,0.7704]
[1743464344622,10.94474,1827.4,1827.2,0.7704]
[1743464344830,5.47231,1827.4,1827.2,0.7704]
[1743464345150,5.47255,1827.3,1827.2,0.7704]
[1743464345346,5.47255,1827.3,1827.1,5.279]
[1743464345576,5.47255,1827.3,1827.1,6.083]
[1743464346362,5.47285,1827.2,1827.1,5.279]
[1743464346922,5.47255,1827.3,1827.1,5.279]
[1743464347448,5.47229,1827.4,1827.1,5.279]
[1743464347619,5.47229,1827.4,1827.1,6.083]
[1743464348251,10.94471,1827.4,1827.1,6.083]
[1743464348746,5.47265,1827.3,1827.1,5.279]
[1743464349047,5.47315,1827.1,1827.0,5.98129526]
[1743464349261,5.47315,1827.1,1827.0,11.25929526]
[1743464351847,5.47298,1827.2,1827.0,11.25929526]
[1743464352258,5.47315,1827.1,1827.0,11.25929526]
[1743464353058,10.94601,1827.2,1827.0,11.25929526]
[1743464353263,5.47315,1827.1,1827.0,11.25929526]
[1743464354848,5.47298,1827.2,1827.0,11.25929526]
[1743464355439,4.442275,1827.5,1827.0,13.78286163]
[1743464355749,5.47234,1827.4,1827.0,24.72955163]
[1743464356138,5.47234,1827.4,1827.1,5.47305]
[1743464356339,5.47234,1827.4,1827.2,0.7634]
[1743464356974,5.47255,1827.3,1827.0,11.25929526]
[1743464357174,10.94531,1827.3,1827.0,11.25929526]
[1743464357875,5.47285,1827.2,1827.0,11.25929526]
[1743464358071,10.94535,1827.3,1827.0,11.25929526]
[1743464358366,11.75285,1827.3,1827.0,11.25929526]
[1743464359368,11.75285,1827.3,1827.0,25.75929526]
[1743464359540,11.75285,1827.3,1827.0,11.25929526]
[1743464359741,5.47286,1827.2,1827.0,11.25929526]
[1743464360770,5.47286,1827.2,1827.0,5.98129526]
[1743464360973,5.47286,1827.2,1827.1,5.277]
[1743464368349,7.60932105,1827.3,1827.1,5.277]
[1743464368548,5.47228,1827.4,1827.1,5.277]
[1743464368772,10.94472,1827.4,1827.1,5.277]
[1743464369372,10.94531,1827.3,1827.1,5.277]
[1743464369550,5.47285,1827.2,1827.1,5.277]
[1743464372184,6.26555,1827.2,1827.1,5.277]
[1743464372380,5.47315,1827.1,1827.0,5.98129526]
[1743464372559,5.47315,1827.1,1827.0,11.25829526]
[1743464374269,6.64702,1827.1,1827.0,11.25829526]
[1743464374964,6.64702,1827.1,1827.0,11.25729526]
[1743464380895,5.47315,1827.1,1827.0,11.25729526]
[1743464384887,5.4726,1827.3,1827.0,16.73064526]
[1743464385708,5.47199,1827.5,1827.2,5.47275]
[1743464386080,5.47167,1827.6,1827.2,5.4727]
[1743464386294,5.47167,1827.6,1827.4,0.7828]
[1743464386575,5.47167,1827.6,1827.5,5.276]
[1743464392539,5.47268,1827.3,1827.0,11.09122136]
[1743464392711,5.47268,1827.3,1827.1,5.275]
[1743464394046,5.47239,1827.4,1827.1,5.275]
[1743464394201,5.47239,1827.4,1827.1,10.74811]
[1743464394905,5.47239,1827.4,1827.1,5.275]
[1743464395409,10.94484,1827.4,1827.1,5.275]
[1743464395811,5.47239,1827.4,1827.1,5.275]
[1743464396029,5.47239,1827.4,1827.1,10.74809]
[1743464396220,5.472,1827.5,1827.1,10.74809]
[1743464396730,10.94413,1827.5,1827.1,10.74809]
[1743464398246,5.4724,1827.4,1827.1,5.275]
[1743464398733,5.47268,1827.3,1827.1,5.275]
[1743464399312,6.098088,1827.3,1827.1,5.275]
[1743464399513,5.47285,1827.2,1827.0,5.98129526]
[1743464399744,5.47315,1827.1,1827.0,5.98129526]
[1743464399940,5.47315,1827.1,1827.0,11.25529526]
[1743464400632,5.47285,1827.2,1827.0,11.25529526]
[1743464401425,5.47256,1827.3,1827.1,0.7952]
[1743464402450,5.4723,1827.4,1827.1,6.26832]
[1743464402747,5.47201,1827.5,1827.1,11.74144]
[1743464402933,5.47201,1827.5,1827.1,6.2682]
[1743464403135,10.94425,1827.5,1827.1,6.2682]
[1743464403350,5.47227,1827.4,1827.1,8.73518178]
[1743464404353,5.47268,1827.3,1827.0,5.98129526]
[1743464404571,5.47302,1827.2,1827.1,5.274]
[1743464405427,5.47268,1827.3,1827.1,5.274]
[1743464405623,5.47227,1827.4,1827.1,5.274]
[1743464405836,5.472,1827.5,1827.2,0.8333]
[1743464406164,10.94412,1827.5,1827.2,0.8333]
[1743464406467,10.94479,1827.4,1827.1,5.274]
[1743464406686,5.47265,1827.3,1827.1,5.274]
[1743464407056,5.47226,1827.4,1827.1,5.274]
[1743464408062,10.94475,1827.4,1827.1,5.274]
[1743464408463,5.47226,1827.4,1827.1,5.274]
[1743464408973,10.94468,1827.4,1827.1,5.274]
[1743464409131,5.47226,1827.4,1827.1,5.274]
[1743464409566,5.47255,1827.3,1827.1,5.274]
[1743464410969,5.47226,1827.4,1827.1,5.274]
[1743464411155,5.47226,1827.4,1827.1,10.80182478]
[1743464411330,5.47201,1827.5,1827.1,18.57837631]
[1743464411538,5.47201,1827.5,1827.1,18.52358153]
[1743464411884,10.94416,1827.5,1827.1,13.05055153]
[1743464413191,5.47226,1827.4,1827.1,7.57752153]
[1743464413392,5.47296,1827.2,1827.1,5.274]
[1743464413887,5.47268,1827.3,1827.1,5.274]
[1743464415072,5.47227,1827.4,1827.1,5.274]
[1743464415387,10.9447,1827.4,1827.1,5.274]
[1743464415988,5.47258,1827.3,1827.1,5.274]
[1743464416358,5.47285,1827.2,1827.1,5.274]
[1743464417496,6.24508,1827.3,1827.1,5.274]
[1743464417696,5.47258,1827.3,1827.1,5.274]
[1743464417996,10.94473,1827.4,1827.1,5.274]
[1743464419066,5.47258,1827.3,1827.1,5.274]
[1743464420512,6.24447,1827.5,1827.1,10.747]
[1743464420811,5.47233,1827.4,1827.1,12.50213453]
[1743464421110,5.47233,1827.4,1827.1,27.00213453]
[1743464421408,5.47197,1827.5,1827.1,27.00213453]
[1743464421573,10.94411,1827.5,1827.1,32.47515453]
[1743464421772,5.47197,1827.5,1827.1,32.47515453]
[1743464422067,5.47197,1827.5,1827.1,12.50213453]
[1743464422400,5.47252,1827.4,1827.1,5.274]
[1743464422583,10.94495,1827.4,1827.1,5.274]
[1743464422784,5.47243,1827.4,1827.1,5.274]
[1743464424370,5.47242,1827.4,1827.1,10.80180529]
[1743464424887,10.94413,1827.5,1827.1,10.80180524]
[1743464425205,5.47199,1827.5,1827.2,6.24125]
[1743464426072,5.47169,1827.6,1827.3,5.47246]
[1743464426299,5.47139,1827.7,1827.3,5.47246]
[1743464426300,10.94287,1827.7,1827.3,5.47242]
[1743464426799,5.47181,1827.6,1827.3,5.47242]
[1743464427179,10.94365,1827.6,1827.2,7.94002]
[1743464427365,5.47199,1827.5,1827.2,7.94002]
[1743464427570,10.94414,1827.5,1827.2,2.46723]
[1743464427780,5.47199,1827.5,1827.2,2.46723]
[1743464428095,5.47199,1827.5,1827.2,7.94007]
[1743464429504,5.47199,1827.5,1827.1,10.74699]
[1743464429675,10.9442,1827.5,1827.2,5.272]
[1743464429875,5.47227,1827.4,1827.2,5.272]
[1743464430175,5.47199,1827.5,1827.2,10.74478]
[1743464430679,10.94412,1827.5,1827.2,5.272]
[1743464431007,5.47199,1827.5,1827.2,5.272]
[1743464431784,5.47229,1827.4,1827.2,5.272]
[1743464433004,11.74981,1827.6,1827.2,11.819319]
[1743464433310,10.94351,1827.6,1827.3,0.7922]
[1743464433482,5.47168,1827.6,1827.3,0.7922]
[1743464433681,5.47168,1827.6,1827.3,6.26475]
[1743464435210,10.9435,1827.6,1827.3,0.7922]
[1743464436110,5.47196,1827.5,1827.3,0.7922]
[1743464437010,10.94411,1827.5,1827.3,0.7922]
[1743464437188,5.47196,1827.5,1827.3,0.7922]
[1743464437397,5.47225,1827.4,1827.3,0.7922]
[1743464437709,5.47196,1827.5,1827.3,0.7922]
[1743464438993,10.94415,1827.5,1827.3,0.7922]
[1743464439509,5.47226,1827.4,1827.2,5.272]
[1743464440513,6.03893957,1828.3,1827.9,5.47065]
[1743464440717,0.56933957,1828.3,1828.0,10.7423]
[1743464440915,0.56933957,1828.3,1828.0,11.5425]
[1743464441218,6.03898957,1828.3,1828.0,11.5425]
[1743464441409,0.56933957,1828.3,1828.0,17.01282]
[1743464441606,0.56933957,1828.3,1828.0,7.773482]
[1743464441815,6.03903957,1828.3,1828.0,6.0722]
[1743464441985,5.4697,1828.3,1828.0,6.0722]
[1743464443599,5.4697,1828.3,1828.0,11.54265]
[1743464446640,5.4697,1828.3,1828.0,6.0722]
[1743464446793,10.93945,1828.3,1828.0,6.0722]
[1743464447338,5.4697,1828.3,1828.0,7.226477]
[1743464447542,5.47007,1828.2,1827.8,6.2739]
[1743464447699,5.4702,1828.1,1827.9,5.27]
[1743464448096,5.47106,1827.8,1827.5,0.803]
[1743464448314,5.47106,1827.8,1827.6,5.27]
[1743464449548,5.46977,1828.3,1827.7,0.803]
[1743464449729,5.46987,1828.2,1827.8,6.27393]
[1743464450323,6.22367,1828.2,1827.8,6.27393]
[1743464450524,6.22367,1828.2,1827.8,6.32863392]
[1743464451053,6.22367,1828.2,1827.8,11.79950392]
[1743464451229,6.22367,1828.2,1827.9,5.47073]
[1743464451431,6.22367,1828.2,1828.0,5.27]
[1743464451646,0.7538,1828.2,1828.0,5.27]
[1743464451954,10.684375,1828.3,1828.0,5.27]
[1743464452250,17.2226125,1828.3,1828.0,5.27]
[1743464454556,5.46986,1828.2,1828.0,5.27]
[1743464456126,5.47016,1828.1,1828.0,5.27]
[1743464456953,5.46986,1828.2,1828.0,5.27]
[1743464457130,5.47016,1828.1,1828.0,5.27]
[1743464458060,0.7899,1828.0,1827.6,31.551]
[1743464458267,5.4712,1827.8,1827.7,5.269]
[1743464460251,5.47088,1827.9,1827.7,5.269]
[1743464460765,5.47077,1827.9,1827.7,5.269]
[1743464461066,5.47105,1827.8,1827.7,5.269]
[1743464461929,5.47077,1827.9,1827.7,5.269]
[1743464462135,5.47046,1828.0,1827.7,5.269]
[1743464462363,5.47002,1828.2,1827.8,6.27759]
[1743464462542,5.47002,1828.2,1827.8,11.74852]
[1743464462742,5.47002,1828.2,1827.8,6.27759]
[1743464462965,5.47002,1828.2,1827.9,5.47075]
[1743464463161,5.47023,1828.1,1827.8,20.77759]
[1743464463368,5.47002,1828.2,1827.9,2.077759]
[1743464463556,5.47002,1828.2,1827.9,7.548499]
[1743464463953,10.93931,1828.3,1827.9,7.548499]
[1743464464662,5.46956,1828.3,1827.9,13.019139]
[1743464464865,10.9393,1828.3,1827.9,7.548399]
[1743464465063,10.9393,1828.3,1828.0,0.7548399]
[1743464465257,10.9393,1828.3,1828.1,5.269]
[1743464465868,5.46986,1828.2,1828.1,5.269]
[1743464468472,5.47016,1828.1,1827.8,6.2777]
[1743464468771,5.47016,1828.1,1827.9,5.269]
[1743464469073,5.47016,1828.1,1827.9,6.42367]
[1743464469273,5.46986,1828.2,1827.9,6.42367]
[1743464469874,10.93989,1828.2,1827.9,6.42367]
[1743464470074,5.46986,1828.2,1827.9,6.42367]
[1743464470774,10.93991,1828.2,1827.9,6.42367]
[1743464471177,5.46986,1828.2,1827.9,6.42367]
[1743464471471,10.93989,1828.2,1827.9,6.42367]
[1743464472067,5.46986,1828.2,1827.9,6.42367]
[1743464472476,10.9399,1828.2,1827.9,6.42367]
[1743464472776,5.46986,1828.2,1827.9,6.42367]
[1743464473075,10.9399,1828.2,1827.9,6.42367]
[1743464474079,5.46986,1828.2,1827.9,6.42367]
[1743464474680,5.46986,1828.2,1827.9,11.89441]
[1743464474855,5.46986,1828.2,1827.9,11.89432]
[1743464475055,5.46957,1828.3,1827.9,17.36494]
[1743464475253,0.7992,1828.2,1827.7,4.776307]
[1743464475463,5.47135,1827.7,1827.6,36.819]
[1743464475651,5.47073,1828.0,1827.6,36.819]
[1743464475856,5.47073,1828.0,1827.6,42.29055]
[1743464476056,5.47065,1828.0,1827.6,42.29055]
[1743464476257,5.47065,1828.0,1827.6,47.14957]
[1743464476869,5.47087,1827.9,1827.6,41.67802]
[1743464477564,10.94185,1827.9,1827.6,41.67802]
[1743464477750,5.47108,1827.8,1827.6,41.67802]
[1743464477951,10.94236,1827.8,1827.6,36.819]
[1743464478151,5.47108,1827.8,1827.6,36.819]
[1743464478357,5.47108,1827.8,1827.6,5.268]
[1743464479092,5.47135,1827.7,1827.6,5.268]
[1743464480551,5.47108,1827.8,1827.6,5.268]
[1743464480788,5.47135,1827.7,1827.6,5.268]
[1743464482690,5.47135,1827.7,1827.6,5.268]
[1743464483190,5.47108,1827.8,1827.6,5.268]
[1743464483378,5.47108,1827.8,1827.5,0.8278]
[1743464483578,5.47108,1827.8,1827.6,5.269]
[1743464484087,10.94232,1827.8,1827.6,5.269]
[1743464484690,5.47108,1827.8,1827.6,5.269]
[1743464485784,5.47081,1827.9,1827.6,5.269]
[1743464485987,5.47081,1827.9,1827.6,11.35024]
[1743464486163,5.47051,1828.0,1827.6,16.8218]
[1743464486363,10.94117,1828.0,1827.6,10.74056]
[1743464487071,5.47078,1827.9,1827.6,5.269]
[1743464487474,5.47078,1827.9,1827.6,10.74064]
[1743464487685,10.94171,1827.9,1827.6,5.269]
[1743464488364,5.47108,1827.8,1827.6,5.269]
[1743464489393,5.47078,1827.9,1827.6,5.269]
[1743464489793,5.47106,1827.8,1827.6,5.269]
[1743464490193,5.47106,1827.8,1827.4,5.47219]
[1743464490194,5.47151,1827.7,1827.3,38.22976922]
[1743464490490,5.47166,1827.6,1827.3,32.3497]
[1743464490682,5.47197,1827.5,1827.4,5.268]
[1743464490882,5.47197,1827.5,1827.3,31.55]
[1743464491091,5.47197,1827.5,1827.4,5.268]
[1743464492163,5.47107,1827.8,1827.4,15.18602]
[1743464492367,10.94234,1827.8,1827.4,15.18602]
[1743464492592,10.94237,1827.8,1827.4,15.18594]
[1743464492794,5.47138,1827.7,1827.4,9.7138]
[1743464492998,10.94297,1827.7,1827.4,9.7138]
[1743464493170,5.47167,1827.6,1827.4,9.7138]
[1743464493371,5.47167,1827.6,1827.5,5.269]
[1743464494313,5.47197,1827.5,1827.3,31.55]
[1743464494472,5.47197,1827.5,1827.2,6.23655]
[1743464494772,5.47197,1827.5,1827.3,5.269]
[1743464496702,9.913945,1827.6,1827.3,5.269]
[1743464496914,5.47167,1827.6,1827.3,10.74155]
[1743464497086,5.47167,1827.6,1827.3,12.43936]
[1743464497780,10.9435,1827.6,1827.3,6.96681]
[1743464498085,10.9435,1827.6,1827.3,5.269]
[1743464498290,5.47167,1827.6,1827.3,5.269]
[1743464498781,10.94351,1827.6,1827.3,5.269]
[1743464498981,5.47167,1827.6,1827.3,5.269]
[1743464499896,10.94549,1827.3,1827.0,32.3364]
[1743464500099,5.47266,1827.3,1827.1,5.269]
[1743464500998,9.914555,1827.4,1827.1,5.269]
[1743464501200,6.27669,1827.5,1827.1,10.742]
[1743464501382,5.47199,1827.5,1827.1,16.21503]
[1743464501701,5.47199,1827.5,1827.2,5.47274]
[1743464502268,10.94355,1827.6,1827.2,5.47273]
[1743464502473,10.94355,1827.6,1827.2,6.30351]
[1743464502474,5.47167,1827.6,1827.2,6.30351]
[1743464502823,5.47106,1827.8,1827.4,6.30299]
[1743464503019,5.47106,1827.8,1827.5,10.74094]
[1743464503223,11.76663,1827.9,1827.5,10.74094]
[1743464503453,5.47079,1827.9,1827.5,10.74094]
[1743464504233,10.94173,1827.9,1827.5,10.74079]
[1743464504411,5.47079,1827.9,1827.5,10.74079]
[1743464504612,5.47079,1827.9,1827.5,12.0157027]
[1743464504924,5.47079,1827.9,1827.6,5.47164]
[1743464505896,12.912745,1828.0,1827.7,0.8278]
[1743464507750,8.47047,1828.0,1827.7,6.29905]
[1743464508036,13.94116,1828.0,1827.7,0.8278]
[1743464508242,8.47047,1828.0,1827.7,0.8278]
[1743464508650,13.94114,1828.0,1827.7,0.8278]
[1743464508944,13.94112,1828.0,1827.7,0.8278]
[1743464509111,13.94115,1828.0,1827.7,0.8278]
[1743464509299,5.47088,1827.9,1827.5,12.8412427]
[1743464509502,5.47122,1827.8,1827.5,7.3693127]
[1743464509716,5.47122,1827.8,1827.5,6.0944]
[1743464510239,10.94249,1827.8,1827.5,6.0944]
[1743464510740,10.92509,1827.8,1827.5,6.0944]
[1743464512668,5.45382,1827.8,1827.5,6.0944]
[1743464512945,5.45382,1827.8,1827.5,13.75687964]
[1743464513162,10.94174,1827.9,1827.5,13.70216561]
[1743464513654,5.47077,1827.9,1827.6,5.47165]
[1743464515519,5.47077,1827.9,1827.5,13.70216561]
[1743464515724,5.47122,1827.8,1827.5,13.70216561]
[1743464515925,5.47122,1827.8,1827.5,8.23023561]
[1743464517018,5.47122,1827.8,1827.5,13.70215561]
[1743464518253,5.47122,1827.8,1827.5,8.23023561]
[1743464518862,10.94248,1827.8,1827.5,8.23023561]
[1743464519258,5.47122,1827.8,1827.5,8.23023561]
[1743464519561,5.47122,1827.8,1827.5,13.70206561]
[1743464520350,10.94167,1827.9,1827.5,19.17387561]
[1743464520649,10.94177,1827.9,1827.6,1.21483232]
[1743464520950,10.94177,1827.9,1827.5,11.56621]
[1743464521548,5.47106,1827.8,1827.5,11.56621]
[1743464522854,5.4708,1827.9,1827.5,11.56621]
[1743464523216,10.94178,1827.9,1827.5,11.56621]
[1743464523518,5.47116,1827.8,1827.5,11.56621]
[1743464523817,5.47116,1827.8,1827.5,13.270051]
[1743464524154,5.4708,1827.9,1827.6,5.47161]
[1743464526949,5.4708,1827.9,1827.5,13.270051]
[1743464526950,10.94174,1827.9,1827.5,13.270051]
[1743464527351,5.4708,1827.9,1827.5,18.741851]
[1743464527956,5.4708,1827.9,1827.6,5.47164]
[1743464529464,5.47136,1827.7,1827.5,0.8254]
[1743464529673,5.47136,1827.7,1827.3,43.26591]
[1743464529968,5.47136,1827.7,1827.4,5.267]
[1743464530141,10.739185,1827.8,1827.4,16.26597599]
[1743464530344,6.29691,1827.8,1827.4,16.21126]
[1743464530539,6.29691,1827.8,1827.4,21.064486]
[1743464530885,6.29691,1827.8,1827.5,5.267]
[1743464531568,11.76818,1827.8,1827.5,5.267]
[1743464531771,11.76816,1827.8,1827.5,5.267]
[1743464532171,11.76814,1827.8,1827.5,5.267]
[1743464532664,6.29691,1827.8,1827.5,5.267]
[1743464532871,5.47137,1827.7,1827.5,5.267]
[1743464533672,5.47111,1827.8,1827.5,5.267]
[1743464533965,5.47079,1827.9,1827.5,18.5266926]
[1743464534170,5.47079,1827.9,1827.6,5.4716]
[1743464536489,6.27898,1828.2,1827.8,5.47105]
[1743464536644,5.46961,1828.3,1827.9,10.73751]
[1743464536844,5.46961,1828.3,1828.0,6.22714]
[1743464537193,5.46961,1828.3,1828.0,0.7568]
[1743464538176,10.93935,1828.3,1828.0,0.7568]
[1743464539485,5.46961,1828.3,1828.0,0.7568]
[1743464539648,5.46961,1828.3,1828.0,1.47093072]
[1743464540056,5.46961,1828.3,1828.0,6.94131072]
[1743464540755,10.93939,1828.3,1828.0,1.47093072]
[1743464540969,5.46961,1828.3,1828.0,1.47093072]
[1743464541384,5.46961,1828.3,1828.0,6.94127072]
[1743464541699,5.46961,1828.3,1828.1,0.69412707]
[1743464542989,6.2784,1828.4,1828.1,0.69412707]
[1743464543203,5.46899,1828.5,1828.1,6.16426707]
[1743464543494,5.46855,1828.7,1828.3,6.28362]
[1743464543795,8.46868,1828.6,1828.4,5.266]
[1743464544349,5.46979,1828.3,1828.0,1.22275676]
[1743464544555,10.686665,1828.3,1828.1,5.266]
[1743464544763,5.46926,1828.4,1828.1,10.73615]
[1743464546101,5.4693,1828.4,1828.1,5.266]
[1743464547700,10.685865,1828.5,1828.1,10.73592]
[1743464547897,16.155015,1828.5,1828.1,12.356553]
[1743464548208,10.685865,1828.5,1828.2,5.46978]
[1743464548366,13.93753,1828.6,1828.2,6.22741]
[1743464549601,5.46896,1828.5,1828.2,0.7577]
[1743464549785,5.46937,1828.4,1828.2,0.7577]
[1743464550905,5.46937,1828.4,1828.1,6.886633]
[1743464550906,5.46956,1828.3,1828.1,5.266]
[1743464552766,10.93929,1828.3,1828.1,5.266]
[1743464552966,5.46956,1828.3,1828.1,5.266]
[1743464553399,10.9393,1828.3,1828.1,5.266]
[1743464553571,5.46956,1828.3,1828.1,5.266]
[1743464553909,5.46986,1828.2,1828.1,5.266]
[1743464556906,7.0080295,1828.2,1828.1,5.266]
[1743464561668,12.4780595,1828.2,1828.1,5.265]
[1743464562292,5.46986,1828.2,1828.1,5.265]
[1743464565265,6.28836,1828.2,1828.1,5.265]
[1743464565975,5.46986,1828.2,1828.1,5.265]
[1743464572010,16.148665,1828.3,1828.1,5.265]
[1743464572238,5.46968,1828.3,1828.1,6.0414]
[1743464572577,5.46986,1828.2,1828.1,6.0414]
[1743464573481,5.46986,1828.2,1828.1,5.265]
[1743464577678,15.381695,1828.3,1828.1,5.265]
[1743464578312,5.46986,1828.2,1828.1,5.265]
[1743464580094,8.00194759,1828.3,1828.1,5.265]
[1743464580095,13.47177759,1828.3,1828.1,5.265]
[1743464580290,8.00212759,1828.2,1828.1,5.265]
[1743464581397,5.46986,1828.2,1828.1,5.265]
[1743464582623,2.53226759,1828.4,1828.1,5.87201]
[1743464582788,10.93828,1828.5,1828.2,0.8123]
[1743464583097,13.47054759,1828.5,1828.2,0.8123]
[1743464583719,10.93832,1828.5,1828.2,0.8123]
[1743464583927,5.4693,1828.4,1828.2,0.8123]
[1743464584126,8.00156759,1828.4,1828.2,2.027735]
[1743464585408,5.4693,1828.4,1828.2,2.027735]
[1743464587610,13.47049759,1828.5,1828.2,2.027735]
[1743464587807,8.00182759,1828.3,1828.1,0.60701]
[1743464588015,5.46956,1828.3,1828.2,5.263]
[1743464589106,8.00182759,1828.3,1828.2,5.263]
[1743464589425,5.46956,1828.3,1828.2,5.263]
[1743464590144,5.46938,1828.4,1828.2,5.263]
[1743464590433,10.93893,1828.4,1828.2,5.263]
[1743464593222,5.46956,1828.3,1828.2,5.263]
[1743464596036,0.7858,1828.3,1827.8,0.7997]
[1743464596198,3.0,1828.4,1827.7,31.546]
[1743464596199,5.47105,1827.8,1827.7,31.546]
[1743464596406,9.90190405,1827.9,1827.7,36.809]
[1743464596922,5.47105,1827.8,1827.7,36.809]
[1743464598454,5.47105,1827.8,1827.3,5.47253]
[1743464598455,5.47195,1827.5,1827.2,6.05295158]
[1743464598659,5.47228,1827.4,1827.3,5.263]
[1743464600250,5.47255,1827.3,1827.2,6.05295158]
[1743464600458,9.90349405,1827.3,1827.2,5.29805158]
[1743464600642,10.68729405,1827.3,1827.2,10.56105158]
[1743464607971,9.90322405,1827.4,1827.2,10.56105158]
[1743464608178,10.94416,1827.5,1827.2,12.40165674]
[1743464608876,5.47238,1827.4,1827.2,12.40165674]
[1743464609241,5.47197,1827.5,1827.2,12.40165674]
[1743464609462,6.28748,1827.7,1827.2,12.40165674]
[1743464609665,6.28748,1827.7,1827.3,6.71247567]
[1743464609877,6.28748,1827.7,1827.4,5.47225]
[1743464610061,11.75903,1827.7,1827.3,6.71264567]
[1743464611646,5.47168,1827.6,1827.3,6.71264567]
[1743464613592,10.71842405,1827.7,1827.3,6.71264567]
[1743464613593,16.18998405,1827.7,1827.3,6.71264567]
[1743464613785,16.18998405,1827.7,1827.4,0.67126457]
[1743464613963,10.71842405,1827.7,1827.4,0.67126457]
[1743464614161,9.90232405,1827.7,1827.4,6.14344457]
[1743464614752,15.37386405,1827.7,1827.4,0.67126457]
[1743464615473,9.90232405,1827.7,1827.4,0.67126457]
[1743464615779,15.37386405,1827.7,1827.4,0.67126457]
[1743464615962,15.37386405,1827.7,1827.3,6.71255567]
[1743464616978,16.15337405,1827.8,1827.4,5.47209]
[1743464617282,15.37328405,1827.8,1827.5,0.7909]
[1743464617479,15.37328405,1827.8,1827.6,5.264]
[1743464618482,9.90229405,1827.7,1827.6,5.264]
[1743464625585,5.4711,1827.8,1827.6,5.264]
[1743464625881,10.94179,1827.9,1827.6,5.264]
[1743464626075,5.47113,1827.8,1827.6,5.264]
[1743464626794,10.94237,1827.8,1827.6,5.264]
[1743464626957,5.47113,1827.8,1827.6,5.264]
[1743464631281,10.94244,1827.8,1827.6,5.264]
[1743464637810,13.47595247,1827.8,1827.6,5.264]
[1743464639006,8.00464247,1827.8,1827.6,5.264]
[1743464639399,8.00406247,1828.0,1827.6,17.54344]
[1743464639599,6.27351,1828.1,1827.7,5.47133]
[1743464639815,5.46983,1828.3,1827.9,0.8101]
[1743464639816,8.00343247,1828.2,1827.9,0.8101]
[1743464640109,13.47284247,1828.3,1828.0,5.262]
[1743464640274,2.53351247,1828.2,1828.0,5.262]
[1743464640787,2.53351247,1828.1,1828.0,5.262]
[1743464641599,8.00338247,1828.2,1828.0,5.262]
[1743464641805,5.46987,1828.2,1828.0,5.262]
[1743464644111,10.93993,1828.2,1828.0,5.262]
[1743464644303,5.47016,1828.1,1828.0,5.262]
[1743464644812,5.46926,1828.4,1828.0,5.86921]
[1743464645012,10.93873,1828.4,1828.0,11.33956]
[1743464645211,5.46926,1828.4,1828.0,16.80991]
[1743464645404,10.93878,1828.4,1828.0,11.33956]
[1743464645714,5.46926,1828.4,1828.0,16.80985]
[1743464645913,5.46926,1828.4,1828.1,2.485685]
[1743464646601,10.93869,1828.4,1828.1,2.485685]
[1743464647386,10.93872,1828.4,1828.1,2.485685]
[1743464648119,10.93872,1828.4,1828.1,0.8047]
[1743464648320,5.46956,1828.3,1828.1,0.8047]
[1743464648532,5.47016,1828.1,1828.0,5.262]
[1743464649699,5.47051,1828.0,1827.7,35.3532]
[1743464650003,5.47051,1828.0,1827.8,5.26]
[1743464650731,10.94115,1828.0,1827.8,5.26]
[1743464653130,5.47051,1828.0,1827.8,5.26]
[1743464655923,10.94115,1828.0,1827.8,5.26]
[1743464656224,5.47075,1827.9,1827.8,5.26]
[1743464656439,5.47127,1827.8,1827.5,0.7626]
[1743464656594,5.47137,1827.7,1827.6,5.26]
[1743464658039,5.47123,1827.8,1827.6,5.26]
[1743464658332,10.94249,1827.8,1827.6,5.26]
[1743464658736,5.47135,1827.7,1827.6,5.26]
[1743464659134,10.94255,1827.8,1827.6,5.26]
[1743464659299,5.47135,1827.7,1827.6,5.26]
[1743464659737,10.94249,1827.8,1827.6,5.26]
[1743464659929,10.94246,1827.8,1827.6,5.26]
[1743464660120,5.47123,1827.8,1827.6,5.26]
[1743464665332,5.47123,1827.8,1827.5,0.7626]
[1743464665501,5.47123,1827.8,1827.6,5.259]
[1743464666341,1.61372128,1827.8,1827.2,6.11955158]